bitfinex-derivatives/quotes_ETHF0:USTF0_20250427
["timestamp","ask_amount","ask_price","bid_price","bid_amount"]
[1745723276710,6.45719,1817.6,1817.5,4.83906]
[1745723277909,5.3572,1817.6,1817.5,4.83906]
[1745723278102,6.45719,1817.6,1817.5,4.83906]
[1745723278303,3.722,1817.6,1817.5,4.83906]
[1745723278801,3.722,1817.6,1817.5,6.48536]
[1745723279801,4.82199,1817.6,1817.5,6.48536]
[1745723280001,6.46149,1817.6,1817.5,6.48536]
[1745723280907,6.46149,1817.6,1817.5,3.739]
[1745723281312,5.3615,1817.6,1817.5,4.83906]
[1745723281509,5.3615,1817.6,1817.5,6.42586]
[1745723281712,6.46149,1817.6,1817.5,6.42586]
[1745723283911,5.3615,1817.6,1817.5,6.42586]
[1745723284113,6.46149,1817.6,1817.5,6.42586]
[1745723288017,4.82199,1817.6,1817.5,6.42586]
[1745723288915,6.40559,1817.6,1817.5,6.42586]
[1745723293311,3.722,1817.6,1817.5,6.42586]
[1745723293516,3.722,1817.6,1817.5,12.28276]
[1745723294718,0.97110459,1817.6,1817.5,12.28276]
[1745723298120,4.45944,1818.1,1817.7,2.74975]
[1745723298320,4.45944,1818.1,1817.9,1.09978]
[1745723298521,4.45944,1818.1,1818.0,1.5807]
[1745723299225,8.18139,1818.1,1818.0,2.68045]
[1745723299519,1.09981,1817.9,1817.8,3.739]
[1745723299715,1.09987,1817.8,1817.7,3.2078]
[1745723299920,1.09993,1817.7,1817.6,2.68067]
[1745723300227,2.74003,1817.7,1817.6,5.3157]
[1745723300829,4.45133,1817.7,1817.6,6.41569]
[1745723301016,4.45133,1817.7,1817.6,3.735]
[1745723301326,4.45133,1817.7,1817.5,4.30781]
[1745723301327,1.09999,1817.6,1817.5,4.30786]
[1745723301527,2.71669,1817.6,1817.5,8.04286]
[1745723302124,6.43869,1817.6,1817.5,8.04286]
[1745723302316,6.43869,1817.6,1817.5,4.83506]
[1745723303227,5.3387,1817.6,1817.5,4.83506]
[1745723305818,6.43869,1817.6,1817.5,4.83506]
[1745723306731,6.43869,1817.6,1817.5,3.735]
[1745723307831,6.43869,1817.6,1817.5,4.83506]
[1745723308327,5.3387,1817.6,1817.5,4.83506]
[1745723309232,3.722,1817.6,1817.5,4.83506]
[1745723309833,3.722,1817.6,1817.5,6.50006]
[1745723310643,4.82199,1817.6,1817.5,6.50006]
[1745723311136,2.75057,1817.3,1816.9,11.0161004]
[1745723311328,4.30816,1817.0,1816.9,1.58860733]
[1745723311634,1.10042,1816.9,1816.8,28.92137284]
[1745723311935,6.52517009,1816.9,1816.8,28.92137284]
[1745723312132,15.24717009,1816.9,1816.8,27.32227284]
[1745723312334,15.24712526,1816.9,1816.8,26.18204284]
[1745723313136,15.24712526,1816.9,1816.8,25.01873284]
[1745723313640,10.24712526,1816.9,1816.8,25.01873284]
[1745723313931,6.41632,1816.9,1816.8,25.01873284]
[1745723314329,7.27472,1816.9,1816.8,25.01873284]
[1745723314529,12.27472,1816.9,1816.8,25.01873284]
[1745723315533,12.27472,1816.9,1816.8,14.68813386]
[1745723315743,1.10066,1816.5,1816.4,3.736]
[1745723315931,4.30846,1816.5,1816.4,3.736]
[1745723316131,8.03046,1816.5,1816.4,3.736]
[1745723316427,8.03046,1816.5,1816.4,4.83672]
[1745723316633,8.03046,1816.5,1816.4,6.45882]
[1745723319543,6.9298,1816.5,1816.4,6.45882]
[1745723319940,8.03046,1816.5,1816.4,6.45882]
[1745723320138,6.9298,1816.5,1816.4,6.45882]
[1745723321342,3.722,1816.5,1816.4,6.45882]
[1745723321740,3.722,1816.5,1816.4,8.07802]
[1745723323745,3.722,1816.5,1816.4,13.07802]
[1745723325038,3.722,1816.5,1816.4,16.28582]
[1745723325346,3.722,1816.5,1816.4,11.28582]
[1745723328548,3.722,1816.5,1816.4,8.07802]
[1745723329749,4.82266,1816.5,1816.4,7.28052]
[1745723330049,3.722,1816.5,1816.4,7.28052]
[1745723330244,4.82266,1816.5,1816.4,6.45882]
[1745723330445,6.40566,1816.5,1816.4,6.45882]
[1745723331148,5.305,1816.5,1816.4,6.45882]
[1745723333151,1.10081,1816.3,1816.2,3.735]
[1745723333449,4.30861,1816.3,1816.2,6.5519]
[1745723333850,6.02371,1816.3,1816.2,6.5519]
[1745723334052,6.02371,1816.3,1816.2,5.4511]
[1745723334356,1.10084,1816.2,1816.1,4.83587]
[1745723334651,1.1009,1816.1,1816.0,6.56143]
[1745723334854,4.3087,1816.1,1816.0,6.56143]
[1745723335041,8.0307,1816.1,1816.0,6.56143]
[1745723335750,6.9298,1816.1,1816.0,6.56143]
[1745723335955,8.0307,1816.1,1816.0,6.56143]
[1745723336147,9.7372,1816.1,1816.0,6.56143]
[1745723336348,3.722,1816.1,1816.0,6.56143]
[1745723337147,2.75161,1816.6,1816.5,1.10064]
[1745723337148,1.10065,1816.6,1816.5,1.10064]
[1745723337451,1.10072,1816.5,1816.4,1.10069]
[1745723337651,4.30852,1816.5,1816.4,1.10069]
[1745723337953,2.80713,1816.6,1816.5,1.10066]
[1745723338254,6.52913,1816.6,1816.5,1.10066]
[1745723340246,5.4285,1816.6,1816.4,3.52518]
[1745723340447,6.52913,1816.6,1816.5,1.10066]
[1745723340952,6.52913,1816.6,1816.5,1.6639]
[1745723341152,6.52913,1816.6,1816.5,2.76456]
[1745723341749,6.52913,1816.6,1816.5,1.6639]
[1745723342658,6.52913,1816.6,1816.5,2.76456]
[1745723345961,9.73693,1816.6,1816.5,2.76456]
[1745723346465,9.73693,1816.6,1816.5,1.6639]
[1745723346657,9.73693,1816.6,1816.5,2.76456]
[1745723346969,8.03043,1816.6,1816.5,2.76456]
[1745723347460,3.2078,1817.0,1816.7,3.85183]
[1745723347763,6.4922,1817.2,1817.1,1.1003]
[1745723347956,6.581225,1817.3,1817.2,1.10024]
[1745723348157,11.911125,1817.3,1817.2,1.10024]
[1745723348866,6.43012,1817.3,1817.2,1.10024]
[1745723349260,6.43008,1817.3,1817.2,1.10024]
[1745723349854,5.3299,1817.3,1817.2,1.10024]
[1745723350558,5.3299,1817.3,1817.2,2.76094]
[1745723350966,6.43008,1817.3,1817.2,1.6607]
[1745723351167,6.43008,1817.3,1817.2,2.76094]
[1745723353960,3.722,1817.3,1817.2,2.76094]
[1745723354569,4.82218,1817.3,1817.2,2.76094]
[1745723354770,4.82218,1817.3,1817.2,1.6607]
[1745723354957,6.40648,1817.3,1817.2,2.76094]
[1745723355363,6.40648,1817.3,1817.2,1.6607]
[1745723355564,6.40648,1817.3,1817.2,2.76094]
[1745723355767,1.1003,1817.1,1817.0,3.735]
[1745723355966,1.10036,1817.0,1816.9,2.80971]
[1745723356164,4.0654,1817.2,1817.0,1.10031]
[1745723356369,1.10032,1817.1,1817.0,2.80961]
[1745723356563,2.81692,1817.1,1817.0,2.80961]
[1745723357162,6.53892,1817.1,1817.0,2.80961]
[1745723357873,5.4386,1817.1,1817.0,2.80961]
[1745723358070,6.5389,1817.1,1817.0,2.80961]
[1745723359570,6.5389,1817.1,1817.0,2.80966]
[1745723359772,6.5389,1817.1,1817.0,1.7093]
[1745723360166,7.3515,1817.1,1817.0,1.7093]
[1745723360367,7.3515,1817.1,1817.0,2.80966]
[1745723364073,1.10036,1817.0,1816.9,0.8529]
[1745723364370,1.10042,1816.9,1816.8,3.7427]
[1745723364668,1.10042,1816.9,1816.8,0.0087]
[1745723364876,3.61712,1816.9,1816.8,0.0087]
[1745723365069,1.10048,1816.8,1816.7,2.75729]
[1745723365366,5.97008,1816.8,1816.7,1.6568]
[1745723365762,5.97008,1816.8,1816.7,2.75734]
[1745723366171,9.69208,1816.8,1816.7,2.75734]
[1745723368965,9.69208,1816.8,1816.7,3.54724]
[1745723369480,1.10054,1816.7,1816.6,1.93945]
[1745723369771,2.77824,1816.7,1816.6,1.93945]
[1745723369975,2.77824,1816.7,1816.6,3.64895]
[1745723370176,6.50024,1816.7,1816.6,3.64895]
[1745723371876,4.82254,1816.7,1816.6,3.64895]
[1745723382778,3.722,1816.7,1816.6,3.64895]
[1745723386584,0.78,1816.7,1816.6,11.85675]
[1745723387285,4.65980542,1817.1,1817.0,1.10036]
[1745723387583,4.65980542,1817.1,1817.0,13.04016]
[1745723388277,4.65980542,1817.1,1817.0,14.72206]
[1745723388480,4.65980542,1817.1,1817.0,14.73076]
[1745723389186,8.38180542,1817.1,1817.0,14.73076]
[1745723389386,3.722,1817.1,1817.0,14.73076]
[1745723391189,3.2769,1817.1,1817.0,14.73076]
[1745723393188,0.52471752,1817.1,1817.0,14.73076]
[1745723393994,4.8632,1817.6,1817.5,1.10006]
[1745723394202,8.5852,1817.6,1817.5,1.10006]
[1745723394699,8.5852,1817.6,1817.5,2.77716]
[1745723395002,5.3774,1817.6,1817.5,2.77716]
[1745723395203,8.5852,1817.6,1817.5,2.77716]
[1745723396506,5.3774,1817.6,1817.5,2.77716]
[1745723396803,8.5852,1817.6,1817.5,2.77716]
[1745723398205,3.722,1817.6,1817.5,2.77716]
[1745723398500,2.49092,1817.6,1817.5,7.77716]
[1745723399105,9.80220667,1818.1,1817.8,2.74962]
[1745723399406,1.652,1818.0,1817.9,4.82881]
[1745723399704,1.652,1818.0,1817.9,6.46571]
[1745723401507,9.24989667,1818.1,1818.0,1.09975]
[1745723401809,8.15020667,1818.1,1818.0,1.09975]
[1745723403006,9.87370667,1818.1,1818.0,1.09975]
[1745723403900,3.2078,1818.4,1818.3,1.09957]
[1745723404105,6.03081,1818.4,1818.3,1.09957]
[1745723404404,1.09966,1818.2,1818.1,1.09967]
[1745723404597,4.30746,1818.2,1818.1,4.82767]
[1745723404793,1.09975,1818.0,1817.9,3.728]
[1745723404997,3.2078,1818.0,1817.9,4.82779]
[1745723405202,4.30755,1818.0,1817.9,4.82779]
[1745723405406,5.89435,1818.0,1817.9,1.09979]
[1745723406395,4.7946,1818.0,1817.9,1.09979]
[1745723407206,5.89435,1818.0,1817.9,1.09979]
[1745723407406,3.2078,1818.0,1817.9,2.77529]
[1745723407612,5.6358,1818.0,1817.9,2.77529]
[1745723407903,5.6358,1818.0,1817.9,1.09979]
[1745723408603,6.73555,1818.0,1817.9,1.09979]
[1745723409106,1.09981,1817.9,1817.8,4.82787]
[1745723409301,2.67301,1817.9,1817.8,4.82787]
[1745723409801,1.5732,1817.9,1817.8,4.82787]
[1745723410803,1.5732,1817.9,1817.8,6.47307]
[1745723411007,2.67301,1817.9,1817.8,4.82787]
[1745723411596,1.5732,1817.9,1817.8,4.82787]
[1745723412298,3.2078,1818.0,1817.9,1.09981]
[1745723412502,3.2078,1818.0,1817.9,2.74501]
[1745723413306,4.8027,1818.0,1817.9,2.74501]
[1745723413508,5.90245,1818.0,1817.9,2.74501]
[1745723413808,5.90245,1818.0,1817.9,1.09981]
[1745723414001,3.2078,1818.0,1817.8,3.728]
[1745723414202,3.2078,1818.0,1817.9,2.81731]
[1745723416110,4.7829,1818.0,1817.9,2.81731]
[1745723417010,4.7829,1818.0,1817.9,1.09981]
[1745723417613,1.09981,1817.9,1817.8,3.728]
[1745723417813,2.70721,1817.9,1817.8,3.728]
[1745723418110,2.70721,1817.9,1817.8,4.82787]
[1745723419406,2.70721,1817.9,1817.8,4.83657]
[1745723419602,2.70721,1817.9,1817.8,0.0087]
[1745723420016,2.70721,1817.9,1817.8,1.10857]
[1745723420215,2.70721,1817.9,1817.8,0.0087]
[1745723420513,4.00791,1817.9,1817.8,0.0087]
[1745723420910,4.00791,1817.9,1817.8,1.10857]
[1745723421516,4.00791,1817.9,1817.8,0.0087]
[1745723422111,2.9081,1817.9,1817.8,1.10857]
[1745723422505,1.3007,1817.9,1817.8,1.10857]
[1745723422712,1.3007,1817.9,1817.8,1.94187]
[1745723422911,1.3007,1817.9,1817.8,3.63197]
[1745723423314,2.40051,1817.9,1817.8,3.63197]
[1745723423510,4.01061,1817.9,1817.8,1.10857]
[1745723424115,4.01061,1817.9,1817.8,0.0087]
[1745723424317,4.01061,1817.9,1817.8,1.10857]
[1745723424720,4.01061,1817.9,1817.8,0.0087]
[1745723425425,9.01061,1817.9,1817.8,1e-08]
[1745723425614,9.10637807,1817.9,1817.8,1e-08]
[1745723425813,9.10636972,1817.9,1817.8,1e-08]
[1745723427315,9.01061,1817.9,1817.8,1e-08]
[1745723427714,9.10635549,1817.9,1817.8,1e-08]
[1745723429216,9.10635114,1817.9,1817.8,1e-08]
[1745723430919,16.41435781,1817.9,1817.8,1e-08]
[1745723432511,16.41435021,1817.9,1817.8,1e-08]
[1745723434022,16.41434689,1817.9,1817.8,1e-08]
[1745723434615,9.10634022,1817.9,1817.8,1e-08]
[1745723434819,4.10634022,1817.9,1817.8,1e-08]
[1745723437415,9.10634022,1817.9,1817.8,1e-08]
[1745723437621,1.10024,1817.2,1817.1,2.5172]
[1745723437820,4.30804,1817.2,1817.1,2.5172]
[1745723438225,4.30804,1817.2,1817.1,3.6175]
[1745723438615,4.30804,1817.2,1817.1,2.5172]
[1745723440428,1.10024,1817.2,1817.1,2.5172]
[1745723440725,4.30804,1817.2,1817.1,3.6175]
[1745723440926,3.2078,1817.2,1817.1,8.6175]
[1745723441124,4.30804,1817.2,1817.1,8.6175]
[1745723441428,3.2078,1817.2,1817.1,8.6175]
[1745723443530,1.10018,1817.3,1817.2,1.10024]
[1745723443831,1.10018,1817.3,1817.2,2.70344]
[1745723445430,4.30797,1817.4,1817.3,1.10018]
[1745723445631,4.30797,1817.4,1817.3,2.71348]
[1745723447133,4.30797,1817.4,1817.3,1.6133]
[1745723447324,4.30797,1817.4,1817.3,2.71348]
[1745723449331,4.30797,1817.4,1817.3,1.6133]
[1745723450137,4.30797,1817.4,1817.3,2.71348]
[1745723450933,4.30797,1817.4,1817.3,1.6133]
[1745723451328,5.87107,1817.4,1817.3,1.6133]
[1745723462754,11.3534484,1817.4,1817.3,1.6133]
[1745723464049,12.1807484,1817.4,1817.3,1.6133]
[1745723466456,14.00887459,1817.4,1817.3,1.6133]
[1745723467253,2.75075,1817.1,1816.8,3.724]
[1745723467558,1.10036,1817.0,1816.9,2.3878]
[1745723467749,4.30816,1817.0,1816.9,1.92582]
[1745723469056,4.30816,1817.0,1816.9,0.8254]
[1745723469450,4.30816,1817.0,1816.9,1.92582]
[1745723469857,4.30816,1817.0,1816.9,0.8254]
[1745723470158,9.80901506,1817.0,1816.9,0.8254]
[1745723470350,9.80901506,1817.0,1816.9,1.92582]
[1745723470549,9.80901506,1817.0,1816.9,0.8254]
[1745723471860,1.10042,1816.9,1816.8,4.5483]
[1745723472158,3.54802,1816.9,1816.8,4.5483]
[1745723472563,3.54802,1816.9,1816.8,0.8243]
[1745723474660,6.75582,1816.9,1816.8,0.8243]
[1745723476057,3.54802,1816.9,1816.8,0.8243]
[1745723476262,6.75582,1816.9,1816.8,0.8243]
[1745723478561,14.06632459,1816.9,1816.8,0.8243]
[1745723482268,2.75121,1816.8,1816.4,2.75176]
[1745723482472,1.10048,1816.8,1816.7,1.5859]
[1745723482674,4.30828,1816.8,1816.7,1.5859]
[1745723482871,5.98748,1816.8,1816.7,1.5859]
[1745723486376,1.1006,1816.6,1816.5,3.2093]
[1745723486576,4.3084,1816.6,1816.5,3.2093]
[1745723488777,4.3084,1816.6,1816.5,4.30996]
[1745723489178,4.3084,1816.6,1816.5,3.2093]
[1745723489679,4.3084,1816.6,1816.5,4.30996]
[1745723489879,4.3084,1816.6,1816.5,3.2093]
[1745723491072,1.1006,1816.6,1816.5,3.2093]
[1745723491376,4.3084,1816.6,1816.5,4.30996]
[1745723492074,8.69974358,1816.8,1816.7,1.10054]
[1745723492476,5.4832436,1816.8,1816.7,7.77054]
[1745723494484,4.30821,1817.0,1816.9,1.10042]
[1745723494684,4.30821,1817.0,1816.9,4.82242]
[1745723495173,4.30821,1817.0,1816.9,6.47902]
[1745723496179,3.7773,1817.3,1817.2,1.1002]
[1745723496180,3.2078,1817.3,1817.2,1.1002]
[1745723496377,1.1003,1817.1,1817.0,1.6719]
[1745723496683,4.3081,1817.1,1817.0,3.722]
[1745723497883,4.3081,1817.1,1817.0,4.82236]
[1745723506685,4.3081,1817.1,1817.0,3.722]
[1745723507178,1.10042,1816.9,1816.8,0.8232]
[1745723507381,4.30822,1816.9,1816.8,0.8232]
[1745723507983,6.72672,1816.9,1816.8,0.8232]
[1745723508590,5.88142,1816.9,1816.8,0.8232]
[1745723510092,4.30822,1816.9,1816.8,2.71218]
[1745723511899,4.30822,1816.9,1816.8,4.41718]
[1745723513497,3.2078,1816.9,1816.8,4.41718]
[1745723514600,3.2078,1816.9,1816.8,9.41718]
[1745723518203,1.10032,1817.1,1817.0,1.10036]
[1745723518405,4.30812,1817.1,1817.0,4.81836]
[1745723520409,5.91282,1817.1,1817.0,4.81836]
[1745723522219,4.30812,1817.1,1817.0,4.81836]
[1745723522421,3.2078,1817.1,1817.0,4.81836]
[1745723523519,4.3081,1817.1,1817.0,4.81836]
[1745723524726,3.2078,1817.1,1817.0,4.81836]
[1745723525227,4.3081,1817.1,1817.0,4.81836]
[1745723525522,3.2078,1817.1,1817.0,4.81836]
[1745723526625,3.2078,1817.1,1817.0,6.43886]
[1745723528327,4.3081,1817.1,1817.0,6.43886]
[1745723531323,1.1003,1817.1,1817.0,6.43886]
[1745723531529,4.3081,1817.1,1817.0,6.43886]
[1745723532530,3.2078,1817.1,1817.0,6.43886]
[1745723535233,4.3081,1817.1,1817.0,6.43886]
[1745723535732,5.9329,1817.1,1817.0,6.43886]
[1745723536336,1.10042,1817.0,1816.9,1.10037]
[1745723536520,2.72522,1817.0,1816.9,1.10037]
[1745723536833,2.72522,1817.0,1816.9,4.81837]
[1745723537021,2.72522,1817.0,1816.9,6.48427]
[1745723539129,3.2078,1817.1,1817.0,1.10036]
[1745723539329,3.2078,1817.1,1817.0,2.78696]
[1745723540435,4.3081,1817.1,1817.0,2.78696]
[1745723540636,11.61860459,1817.1,1817.0,2.78696]
[1745723541031,7.31050459,1817.1,1817.0,6.50496]
[1745723541933,7.31050459,1817.1,1817.0,14.71276]
[1745723545733,0.0087,1817.2,1817.1,1.1003]
[1745723545930,0.0087,1817.2,1817.1,4.4077]
[1745723546131,4.30786,1817.5,1817.4,1.10012]
[1745723546334,4.30786,1817.5,1817.4,4.81512]
[1745723547035,5.90216,1817.5,1817.4,4.81512]
[1745723551436,5.90216,1817.5,1817.4,5.59632]
[1745723553143,5.90216,1817.5,1817.4,4.81512]
[1745723555046,5.90216,1817.5,1817.4,6.43432]
[1745723557746,4.8021,1817.5,1817.4,7.29882]
[1745723558049,3.2078,1817.5,1817.4,7.29882]
[1745723558446,4.30786,1817.5,1817.4,7.29882]
[1745723559445,2.7503,1817.4,1816.6,14.20486479]
[1745723559653,1.10048,1816.8,1816.7,8.43424479]
[1745723559854,4.30826,1816.9,1816.8,1.10048]
[1745723560148,5.10996,1816.9,1816.8,1.10048]
[1745723560356,4.0095,1816.9,1816.8,1.10048]
[1745723560742,5.10992,1816.9,1816.8,1.10048]
[1745723560942,5.10992,1816.9,1816.8,2.83118]
[1745723562051,5.10992,1816.9,1816.8,6.54518]
[1745723562839,5.10992,1816.9,1816.8,3.714]
[1745723563548,1.10054,1816.7,1816.6,1.6777]
[1745723563854,4.30834,1816.7,1816.6,4.8146]
[1745723567653,3.2078,1816.7,1816.5,1.6777]
[1745723567956,1.10078,1816.3,1816.2,3.715]
[1745723568550,2.69458,1816.3,1816.2,3.715]
[1745723568951,2.69458,1816.3,1816.2,4.81584]
[1745723569756,1.5938,1816.3,1816.2,4.81584]
[1745723570259,2.69458,1816.3,1816.2,4.81584]
[1745723572861,5.90238,1816.3,1816.2,4.81584]
[1745723577870,6.69938,1816.3,1816.2,4.81584]
[1745723579075,6.69938,1816.3,1816.2,6.52144]
[1745723583671,6.69938,1816.3,1816.1,0.8449]
[1745723583672,1.10084,1816.2,1816.1,0.8449]
[1745723583973,3.2078,1816.3,1816.0,6.0965]
[1745723584174,4.30861,1816.3,1816.2,1.10084]
[1745723584778,4.30861,1816.3,1816.2,1.89884]
[1745723587072,0.0087,1816.4,1816.3,1.10078]
[1745723587378,0.0087,1816.4,1816.3,10.50478]
[1745723587680,0.0087,1816.4,1816.3,12.29698]
[1745723587880,0.0087,1816.4,1816.3,7.29698]
[1745723589378,1.10942,1816.4,1816.3,2.4832]
[1745723589574,1.10942,1816.4,1816.2,5.61181]
[1745723589575,1.10078,1816.3,1816.2,5.61181]
[1745723589775,5.97278,1816.3,1816.2,3.713]
[1745723591078,5.97278,1816.3,1816.2,4.81384]
[1745723591374,3.2078,1816.3,1816.2,4.81384]
[1745723591776,4.30858,1816.3,1816.2,4.81384]
[1745723591976,3.2078,1816.3,1816.2,7.29094]
[1745723592781,4.30858,1816.3,1816.2,7.29094]
[1745723592983,3.2078,1816.3,1816.2,7.29094]
[1745723593982,4.30858,1816.3,1816.2,7.29094]
[1745723598284,3.2078,1816.3,1816.2,7.29094]
[1745723599285,4.30858,1816.3,1816.2,7.29094]
[1745723601082,4.30858,1816.3,1816.2,3.713]
[1745723601285,1.10095,1816.1,1816.0,4.81392]
[1745723601486,4.30875,1816.1,1816.0,4.81392]
[1745723601689,5.99425,1816.1,1816.0,4.81392]
[1745723607191,5.99425,1816.1,1816.0,3.713]
[1745723607386,5.99425,1816.1,1816.0,4.81396]
[1745723607594,5.99425,1816.1,1816.0,3.713]
[1745723607788,5.99425,1816.1,1816.0,4.81396]
[1745723608392,1.10096,1816.0,1815.9,2.67592]
[1745723608692,2.70296,1816.0,1815.9,2.67592]
[1745723609387,2.70296,1816.0,1815.9,1.5749]
[1745723609594,2.70296,1816.0,1815.9,2.67592]
[1745723611492,2.70296,1816.0,1815.9,1.5749]
[1745723611687,1.10102,1815.9,1815.8,3.711]
[1745723611994,1.10102,1815.9,1815.8,4.81205]
[1745723611995,6.73902,1815.9,1815.8,4.81205]
[1745723612197,1.10139,1815.4,1815.3,1.10135]
[1745723612496,4.30912,1815.5,1815.4,1.10127]
[1745723612697,1.10133,1815.4,1815.3,6.43594]
[1745723612897,1.10133,1815.4,1815.3,6.43599]
[1745723613397,1.10133,1815.4,1815.3,1.6236]
[1745723613598,1.10133,1815.4,1815.2,7.33370479]
[1745723613599,1.10139,1815.3,1815.2,13.82410479]
[1745723613990,4.30919,1815.3,1815.2,12.72270479]
[1745723614390,4.30919,1815.3,1815.2,13.82415479]
[1745723614893,4.30919,1815.3,1815.2,12.72270479]
[1745723615194,4.30919,1815.3,1815.2,13.82415479]
[1745723615394,4.30919,1815.3,1815.2,12.72270479]
[1745723615595,4.30919,1815.3,1815.2,13.82415479]
[1745723617199,4.30919,1815.3,1815.2,10.11315479]
[1745723617393,4.30919,1815.3,1815.2,7.33370479]
[1745723617588,3.2078,1815.3,1815.1,10.99706479]
[1745723617894,1.10157,1815.0,1814.9,1.564]
[1745723618095,4.30937,1815.0,1814.9,1.564]
[1745723618293,4.30937,1815.0,1814.9,2.66563]
[1745723618900,3.2078,1815.0,1814.9,2.66563]
[1745723619103,4.30937,1815.0,1814.9,2.66563]
[1745723619501,3.2078,1815.0,1814.9,2.66563]
[1745723619703,4.30937,1815.0,1814.9,2.66563]
[1745723620403,3.2078,1815.0,1814.9,2.66563]
[1745723620807,1.10152,1815.1,1815.0,1.10157]
[1745723621102,1.10152,1815.1,1815.0,2.80147]
[1745723621500,1.10152,1815.1,1815.0,1.6999]
[1745723621900,4.30932,1815.1,1815.0,1.6999]
[1745723622309,5.91552,1815.1,1815.0,1.6999]
[1745723622503,1.10163,1814.9,1814.8,2.78426]
[1745723622697,1.10175,1814.7,1814.6,1.614]
[1745723623002,4.30955,1814.7,1814.6,3.3139]
[1745723623406,5.91575,1814.7,1814.6,4.41571]
[1745723624107,4.814,1814.7,1814.6,4.41571]
[1745723624298,3.2078,1814.7,1814.6,4.41571]
[1745723624700,4.30955,1814.7,1814.6,4.41571]
[1745723626807,3.2078,1814.7,1814.6,4.41571]
[1745723627604,4.30955,1814.7,1814.6,4.41571]
[1745723629908,3.2078,1814.7,1814.6,4.41571]
[1745723630106,3.2078,1814.9,1814.8,1.10163]
[1745723630316,4.30943,1814.9,1814.8,1.10163]
[1745723631217,3.2078,1814.9,1814.8,1.10163]
[1745723631517,4.30943,1814.9,1814.8,1.10163]
[1745723631911,1.10169,1814.8,1814.7,2.72502]
[1745723632711,1.10169,1814.8,1814.7,1.6233]
[1745723632910,1.10169,1814.8,1814.7,2.72505]
[1745723634015,1.10169,1814.8,1814.7,1.6233]
[1745723634218,2.75629,1814.8,1814.7,1.6233]
[1745723634916,1.10175,1814.7,1814.6,4.528]
[1745723635113,5.96415,1814.7,1814.6,7.27911]
[1745723635411,5.96415,1814.7,1814.6,6.46411]
[1745723635608,5.96415,1814.7,1814.6,3.713]
[1745723635809,1.10187,1814.5,1814.4,2.4468]
[1745723636104,4.30967,1814.5,1814.4,1.6493]
[1745723636516,6.73087,1814.5,1814.4,1.6493]
[1745723637113,6.73087,1814.5,1814.2,4.5085]
[1745723637114,1.102,1814.3,1814.2,4.5085]
[1745723637309,4.3098,1814.3,1814.2,7.20386]
[1745723637504,4.3098,1814.3,1814.2,6.1018]
[1745723637811,4.3098,1814.3,1814.2,2.3908]
[1745723638322,1.10218,1814.0,1813.9,3.712]
[1745723638615,1.10207,1814.2,1814.1,1.10212]
[1745723638917,1.10212,1814.1,1814.0,2.69545]
[1745723639617,4.30992,1814.1,1814.0,2.69545]
[1745723642416,4.30992,1814.1,1814.0,2.4205]
[1745723642618,5.96872,1814.1,1814.0,1.5933]
[1745723642817,1.10218,1814.0,1813.9,5.64944]
[1745723643017,1.10218,1814.0,1813.9,2.5427]
[1745723643818,1.10218,1814.0,1813.9,3.64494]
[1745723646119,4.30998,1814.0,1813.9,3.64494]
[1745723647218,4.30998,1814.0,1813.9,2.80974]
[1745723648817,4.30998,1814.0,1813.9,1.7075]
[1745723649120,4.30998,1814.0,1813.9,2.80974]
[1745723649420,1.10201,1814.3,1814.2,1.10206]
[1745723650013,1.10201,1814.3,1814.2,3.61936]
[1745723650217,4.30981,1814.3,1814.2,3.61936]
[1745723650822,4.3098,1814.3,1814.2,3.61936]
[1745723652919,3.2078,1814.3,1814.2,3.61936]
[1745723654723,1.10197,1814.4,1814.3,1.102]
[1745723654916,1.10197,1814.4,1814.3,3.6498]
[1745723655424,4.30973,1814.5,1814.4,1.10194]
[1745723655616,4.30973,1814.5,1814.4,2.80204]
[1745723658924,4.30973,1814.5,1814.4,1.7001]
[1745723659726,1.102,1814.3,1814.2,1.95971]
[1745723660227,1.102,1814.3,1814.2,3.52891]
[1745723660419,1.102,1814.3,1814.2,1.5692]
[1745723660726,5.9891,1814.3,1814.2,1.5692]
[1745723666327,1.10206,1814.2,1814.1,4.5456]
[1745723666527,2.78066,1814.2,1814.1,3.713]
[1745723667841,1.10212,1814.1,1814.0,2.75427]
[1745723668131,2.78072,1814.1,1814.0,2.75427]
[1745723668333,5.98852,1814.1,1814.0,1.6521]
[1745723668834,5.98852,1814.1,1814.0,2.75428]
[1745723670234,5.98852,1814.1,1814.0,1.6521]
[1745723670637,2.75545,1814.0,1813.3,3.6492906]
[1745723670933,4.31028,1813.5,1813.4,1.6843]
[1745723671728,5.99958,1813.5,1813.4,1.6843]
[1745723673832,5.99958,1813.5,1813.4,2.78684]
[1745723674033,4.31028,1813.5,1813.4,2.78684]
[1745723674937,4.31028,1813.5,1813.4,1.6843]
[1745723675328,5.93708,1813.5,1813.4,2.78684]
[1745723676231,5.93708,1813.5,1813.4,1.6843]
[1745723676732,1.1026,1813.3,1813.2,5.67524]
[1745723676929,4.3104,1813.3,1813.2,7.28244]
[1745723678438,3.2078,1813.3,1813.2,7.28244]
[1745723678630,4.34146,1813.6,1813.2,7.28244]
[1745723678631,4.31031,1813.5,1813.4,1.10254]
[1745723679239,4.31031,1813.5,1813.4,1.95014]
[1745723679940,3.2078,1813.5,1813.4,1.95014]